bitfinex/quotes_BTCUSD_20250620
["timestamp","ask_amount","ask_price","bid_price","bid_amount"]
[1750447851740,0.40495,103350.0,103340.0,0.22256515]
[1750447851965,0.87031885,103350.0,103340.0,0.22256515]
[1750447852194,0.40495,103350.0,103340.0,0.25737314]
[1750447852422,0.80541885,103350.0,103340.0,0.25737314]
[1750447852652,0.34907266,103350.0,103340.0,0.25855314]
[1750447852962,0.00907266,103350.0,103340.0,0.26055314]
[1750447853641,0.00907266,103350.0,103340.0,0.29215314]
[1750447853882,0.47444151,103350.0,103340.0,0.29215314]
[1750447854143,0.47444151,103350.0,103340.0,0.38653207]
[1750447854367,0.47444151,103350.0,103340.0,0.35583207]
[1750447854820,0.47444109,103350.0,103340.0,0.35583207]
[1750447855074,0.46541885,103350.0,103340.0,0.51821207]
[1750447855316,1.61085938,103350.0,103340.0,0.38812552]
[1750447855548,1.58363351,103350.0,103340.0,0.39780175]
[1750447855772,1.58363351,103350.0,103340.0,0.40747788]
[1750447855773,1.36192115,103350.0,103340.0,0.40747788]
[1750447856712,1.35224548,103350.0,103340.0,0.40747788]
[1750447856937,1.37159615,103350.0,103340.0,0.46759033]
[1750447857167,1.37159615,103350.0,103340.0,0.30403033]
[1750447857405,1.37159615,103350.0,103340.0,0.46759033]
[1750447857846,1.37159218,103350.0,103340.0,0.46759033]
[1750447858074,1.36185661,103350.0,103340.0,0.30403033]
[1750447858301,1.36185651,103350.0,103340.0,0.46759033]
[1750447858761,1.37153199,103350.0,103340.0,0.46759033]
[1750447858953,0.89648766,103350.0,103340.0,0.46759033]
[1750447859222,0.88681237,103350.0,103340.0,0.46759033]
[1750447859459,0.8868091,103350.0,103340.0,0.46759033]
[1750447859678,0.88680901,103350.0,103340.0,0.46759033]
[1750447859894,0.814434,103350.0,103340.0,0.46759033]
[1750447860761,1.29915334,103350.0,103340.0,0.24391788]
[1750447860965,1.36305334,103350.0,103340.0,0.40731788]
[1750447861378,0.814434,103350.0,103340.0,0.40731788]
[1750447861602,0.814434,103350.0,103340.0,0.56599681]
[1750447861826,0.34906515,103350.0,103340.0,0.56717681]
[1750447862126,0.814434,103350.0,103340.0,0.64325915]
[1750447862407,0.814434,103350.0,103340.0,0.47985915]
[1750447862626,0.814434,103350.0,103340.0,0.64317915]
[1750447862846,5e-05,103350.0,103340.0,0.64317915]
[1750447863119,5e-05,103350.0,103340.0,0.64327915]
[1750447865279,0.34005,103370.0,103350.0,0.26659237]
[1750447865488,0.814434,103370.0,103360.0,0.38726207]
[1750447865702,0.34906515,103370.0,103360.0,0.38726207]
[1750447865911,0.34906515,103370.0,103360.0,0.45066207]
[1750447866128,0.34005,103370.0,103360.0,0.45066207]
[1750447866345,0.00906634,103370.0,103360.0,0.62202334]
[1750447866558,0.01106634,103370.0,103360.0,0.62202334]
[1750447867012,5e-05,103370.0,103360.0,0.62202334]
[1750447867233,5e-05,103370.0,103360.0,0.45846334]
[1750447867447,0.46541885,103370.0,103360.0,0.55850334]
[1750447867889,0.46541885,103370.0,103360.0,0.55846334]
[1750447868539,0.46741885,103370.0,103360.0,0.55846334]
[1750447868657,0.47644606,103370.0,103360.0,0.39506334]
[1750447868874,0.47644606,103370.0,103360.0,0.55850334]
[1750447869309,0.47643827,103370.0,103360.0,0.55842334]
[1750447869737,0.47643827,103370.0,103360.0,0.39506334]
[1750447869983,0.47643827,103370.0,103360.0,0.45936334]
[1750447870202,0.47643827,103370.0,103360.0,0.45946334]
[1750447870648,0.47643827,103370.0,103360.0,0.62274334]
[1750447872003,0.00205,103370.0,103360.0,0.62274334]
[1750447872223,0.00205,103370.0,103360.0,0.62270334]
[1750447874623,0.46536885,103380.0,103370.0,0.22250056]
[1750447874845,0.48407555,103380.0,103370.0,0.24108813]
[1750447875063,0.47440335,103380.0,103370.0,0.24108813]
[1750447875909,0.4885476,103380.0,103370.0,0.24108813]
[1750447876118,0.4788753,103380.0,103370.0,0.24108813]
[1750447876558,0.4788753,103380.0,103370.0,0.24228813]
[1750447877607,0.4788753,103380.0,103370.0,0.27278813]
[1750447877852,0.47887271,103380.0,103370.0,0.30418813]
[1750447878063,0.47887271,103380.0,103370.0,0.86483591]
[1750447878064,0.01350386,103380.0,103370.0,0.86483591]
[1750447878558,0.00447195,103380.0,103370.0,0.86483591]
[1750447878762,0.00047195,103380.0,103370.0,0.86483591]
[1750447879187,0.00047195,103380.0,103370.0,0.86683591]
[1750447879832,0.00047195,103380.0,103370.0,0.88137676]
[1750447880048,0.00047195,103380.0,103370.0,1.22337676]
[1750447880682,0.00047195,103380.0,103370.0,1.43001676]
[1750447883001,0.00047195,103380.0,103370.0,1.09001676]
[1750447884051,0.00047195,103380.0,103370.0,1.09013676]
[1750447884460,0.00047195,103380.0,103370.0,0.41800791]
[1750447884691,0.00047195,103380.0,103370.0,0.62464791]
[1750447886465,0.00047195,103380.0,103370.0,1.09001676]
[1750447888385,0.00047195,103380.0,103370.0,0.62464791]
[1750447888597,0.00047195,103380.0,103370.0,1.09001676]
[1750447889857,0.00047195,103380.0,103370.0,0.88337676]
[1750447890064,0.00047195,103380.0,103370.0,1.08981676]
[1750447890498,0.00047195,103380.0,103370.0,0.56702706]
[1750447890714,0.35327555,103390.0,103380.0,0.22247902]
[1750447890923,0.35327555,103390.0,103380.0,0.3896431]
[1750447890924,0.54681205,103390.0,103380.0,0.3896431]
[1750447891171,0.54681195,103390.0,103380.0,0.5532031]
[1750447891377,0.53714031,103390.0,103380.0,0.5532031]
[1750447891791,0.54681167,103390.0,103380.0,0.5532031]
[1750447891996,0.54781167,103390.0,103380.0,0.5532031]
[1750447892423,0.53814012,103390.0,103380.0,0.5532031]
[1750447892603,0.54781158,103390.0,103380.0,0.5532031]
[1750447892842,0.55748313,103390.0,103380.0,0.5532031]
[1750447893046,0.47604012,103390.0,103380.0,0.5532031]
[1750447893698,0.48571158,103390.0,103380.0,0.5532031]
[1750447893913,0.02034273,103390.0,103380.0,0.5532031]
[1750447894326,0.001,103390.0,103380.0,0.5532031]
[1750447894769,0.001,103390.0,103380.0,0.6194031]
[1750447896776,0.001,103390.0,103380.0,1.08477195]
[1750447901805,0.001,103390.0,103380.0,1.11382291]
[1750447904308,0.001,103390.0,103380.0,0.64845406]
[1750447904794,0.001,103390.0,103380.0,1.11382291]
[1750447905283,0.001,103390.0,103380.0,0.64845406]
[1750447905985,0.49538312,103390.0,103380.0,0.3896431]
[1750447906335,0.02034273,103390.0,103380.0,0.5530431]
[1750447906336,0.02034282,103390.0,103380.0,0.5542431]
[1750447906595,0.01067127,103390.0,103380.0,0.5542431]
[1750447906836,0.02034273,103390.0,103380.0,0.5542431]
[1750447908171,0.01067127,103390.0,103380.0,0.5542431]
[1750447909531,0.001,103390.0,103380.0,0.5542431]
[1750447911272,0.001,103390.0,103380.0,0.6168431]
[1750447912200,0.001,103390.0,103380.0,1.08221195]
[1750447912838,0.001,103390.0,103380.0,0.6168431]
[1750447913521,0.001,103390.0,103380.0,0.5848431]
[1750447913732,0.001,103390.0,103380.0,0.4214431]
[1750447913959,0.001,103390.0,103380.0,0.5542831]
[1750447914994,0.001,103390.0,103380.0,0.6171831]
[1750447916049,0.00972043,103400.0,103390.0,0.22245752]
[1750447916253,5e-05,103400.0,103390.0,0.24656425]
[1750447916685,0.00972043,103400.0,103390.0,0.24656425]
[1750447916888,0.01939095,103400.0,103390.0,0.24656425]
[1750447917099,0.02906175,103400.0,103390.0,0.24533425]
[1750447917319,0.5163598,103400.0,103390.0,0.24533425]
[1750447917540,0.52603051,103400.0,103390.0,0.24533425]
[1750447917747,0.52603051,103400.0,103390.0,0.24633425]
[1750447917967,0.5163598,103400.0,103390.0,0.24833425]
[1750447918168,0.4847598,103400.0,103390.0,0.24956425]
[1750447919426,0.47508928,103400.0,103390.0,0.24956425]
[1750447919853,5e-05,103400.0,103390.0,0.24956425]
[1750447920060,0.07402033,103400.0,103390.0,0.24833425]
[1750447920286,0.03165,103400.0,103390.0,0.24833425]
[1750447920501,5e-05,103400.0,103390.0,0.24956425]
[1750447920721,5e-05,103400.0,103390.0,0.31486425]
[1750447921794,5e-05,103400.0,103390.0,0.87551203]
[1750447922016,5e-05,103400.0,103390.0,0.41014318]
[1750447922231,5e-05,103400.0,103390.0,0.87551203]
[1750447922683,5e-05,103400.0,103390.0,0.41014318]
[1750447922930,5e-05,103400.0,103390.0,0.57398318]
[1750447923155,5e-05,103400.0,103390.0,0.57410318]
[1750447923797,5e-05,103400.0,103390.0,0.41014318]
[1750447924014,5e-05,103400.0,103390.0,0.57402318]
[1750447924489,5e-05,103400.0,103390.0,0.41014318]
[1750447924708,5e-05,103400.0,103390.0,0.57402318]
[1750447925343,5e-05,103400.0,103390.0,0.41014318]
[1750447925617,0.56600167,103400.0,103390.0,0.38925752]
[1750447925842,0.57567275,103400.0,103390.0,0.38925752]
[1750447926078,0.75942657,103400.0,103390.0,0.37958606]
[1750447926531,0.75948657,103400.0,103390.0,0.37966615]
[1750447926758,0.56600298,103400.0,103390.0,0.39900925]
[1750447926990,0.75942657,103400.0,103390.0,0.39900925]
[1750447927434,0.56600298,103400.0,103390.0,0.39900925]
[1750447927904,0.09096296,103400.0,103390.0,0.39900925]
[1750447928130,0.55633181,103400.0,103390.0,0.39900925]
[1750447928558,0.29405772,103400.0,103390.0,0.39900925]
[1750447928766,1.09942657,103400.0,103390.0,0.36999432]
[1750447928975,1.08008469,103400.0,103390.0,0.21578615]
[1750447929252,1.08008469,103400.0,103390.0,0.37978615]
[1750447929511,1.08008469,103400.0,103390.0,0.23512953]
[1750447929748,1.08008469,103400.0,103390.0,0.39908953]
[1750447930216,1.08008469,103400.0,103390.0,0.38941789]
[1750447930423,1.08008469,103400.0,103390.0,0.39908953]
[1750447930853,1.08008469,103400.0,103390.0,0.38941789]
[1750447931299,1.08008469,103400.0,103390.0,0.39908953]
[1750447931507,1.08008469,103400.0,103390.0,0.24480108]
[1750447931768,1.08008469,103400.0,103390.0,0.003]
[1750447931953,1.08014469,103400.0,103390.0,0.3604823]
[1750447932199,1.08014469,103400.0,103390.0,0.42942696]
[1750447932421,1.07047361,103400.0,103390.0,0.42942696]
[1750447932654,1.07047361,103400.0,103390.0,0.43909898]
[1750447932893,1.07047361,103400.0,103390.0,0.4487709]
[1750447933115,1.07047361,103400.0,103390.0,0.45844273]
[1750447933586,1.07047361,103400.0,103390.0,0.4487709]
[1750447934529,1.06080244,103400.0,103390.0,0.42942696]
[1750447935214,1.06080244,103400.0,103390.0,0.06227255]
[1750447935463,4.29674837,103400.0,103390.0,0.003]
[1750447935695,4.31999274,103400.0,103390.0,0.003]
[1750447936192,4.31999274,103400.0,103390.0,0.002]
[1750447936420,4.32099274,103400.0,103390.0,0.002]
[1750447936648,4.29780837,103400.0,103390.0,0.002]
[1750447936884,0.26731422,103390.0,103380.0,9.197e-05]
[1750447937109,0.73274307,103390.0,103380.0,9.197e-05]
[1750447937779,0.828022,103390.0,103380.0,9.197e-05]
[1750447938228,4.73215785,103390.0,103380.0,9.197e-05]
[1750447938469,4.89619785,103390.0,103380.0,9.197e-05]
[1750447938695,5.0146104,103390.0,103380.0,9.197e-05]
[1750447939151,4.91934055,103390.0,103380.0,9.197e-05]
[1750447939663,4.89619785,103390.0,103380.0,9.197e-05]
[1750447940769,4.92451119,103390.0,103380.0,9.197e-05]
[1750447942336,4.45914234,103390.0,103380.0,9.197e-05]
[1750447942775,4.92451119,103390.0,103380.0,9.197e-05]
[1750447942995,4.76047119,103390.0,103380.0,9.197e-05]
[1750447943232,4.80050019,103390.0,103380.0,9.197e-05]
[1750447944151,4.76047119,103390.0,103380.0,9.197e-05]
[1750447946080,4.78953319,103390.0,103380.0,9.197e-05]
[1750447946299,4.78947319,103390.0,103380.0,9.197e-05]
[1750447946504,4.78953319,103390.0,103380.0,9.197e-05]
[1750447949260,3.85873549,103390.0,103380.0,9.197e-05]
[1750447949476,4.24126283,103390.0,103380.0,0.07781092]
[1750447949710,4.24126283,103390.0,103380.0,0.38596912]
[1750447949917,4.28454283,103390.0,103380.0,0.38596912]
[1750447950137,4.274871,103390.0,103380.0,0.10796211]
[1750447950352,1.177104,103390.0,103380.0,0.38476894]
[1750447950557,0.837104,103390.0,103380.0,0.38596894]
[1750447950768,1.177104,103390.0,103380.0,0.38596894]
[1750447950997,1.133824,103390.0,103380.0,0.38596894]
[1750447951210,1.16738566,103390.0,103380.0,0.39564142]
[1750447951855,1.07210673,103390.0,103380.0,0.39564142]
[1750447952064,1.06243509,103390.0,103380.0,0.37629617]
[1750447952271,1.06243509,103390.0,103380.0,0.26842603]
[1750447952476,1.06243509,103390.0,103380.0,0.27809898]
[1750447952697,1.06243509,103390.0,103380.0,0.28777184]
[1750447952902,0.86899279,103390.0,103380.0,0.3071169]
[1750447953103,0.86899279,103390.0,103380.0,0.37360455]
[1750447953520,0.86899279,103390.0,103380.0,0.37240455]
[1750447953730,0.86899279,103390.0,103380.0,0.37360455]
[1750447954140,1.06243509,103390.0,103380.0,0.36393216]
[1750447954346,1.06243509,103390.0,103380.0,0.37360474]
[1750447954608,1.06243509,103390.0,103380.0,0.37360417]
[1750447955312,1.06243509,103390.0,103380.0,0.30711652]
[1750447955520,0.38428,103390.0,103380.0,0.30711596]
[1750447955723,0.85932021,103390.0,103380.0,0.38483491]
[1750447955935,0.39395136,103390.0,103380.0,0.38483491]
[1750447956153,0.39395127,103390.0,103380.0,0.45909436]
[1750447956370,0.38428,103390.0,103380.0,0.45909436]
[1750447957424,0.001,103390.0,103380.0,0.45909436]
[1750447959297,0.001,103390.0,103380.0,0.55437329]
[1750447962270,0.001,103390.0,103380.0,0.47665434]
[1750447967327,0.80541885,103400.0,103390.0,0.28645752]
[1750447967543,0.80541885,103400.0,103390.0,0.47180798]
[1750447968397,0.81508918,103400.0,103390.0,0.45139752]
[1750447968828,0.8247597,103400.0,103390.0,0.45139752]
[1750447969273,0.8344305,103400.0,103390.0,0.45339752]
[1750447969953,0.84410139,103400.0,103390.0,0.45339752]
[1750447971019,0.84410139,103400.0,103390.0,0.28967752]
[1750447971236,0.36906165,103400.0,103390.0,0.45311752]
[1750447971471,0.36906146,103400.0,103390.0,0.45311752]
[1750447971688,0.8247597,103400.0,103390.0,0.52934693]
[1750447971859,0.82475961,103400.0,103390.0,0.52934693]
[1750447972101,0.83443022,103400.0,103390.0,0.52934693]
[1750447972324,0.83443022,103400.0,103390.0,0.45311752]
[1750447973681,0.81508918,103400.0,103390.0,0.45311752]
[1750447973890,0.80541885,103400.0,103390.0,0.45311752]
[1750447974312,0.81508918,103400.0,103390.0,0.45311752]
[1750447974726,0.80541885,103400.0,103390.0,0.45311752]
[1750447974941,0.34005,103400.0,103390.0,0.53711883]
[1750447975158,0.34005,103400.0,103390.0,0.63239776]
[1750447976447,0.47508825,103410.0,103400.0,0.28483599]
[1750447976663,0.49442751,103410.0,103400.0,0.28605599]
[1750447976878,0.50409747,103410.0,103400.0,0.28605599]
[1750447977086,0.49442751,103410.0,103400.0,0.28605599]
[1750447977334,0.49442751,103410.0,103400.0,0.29672459]
[1750447977759,0.48475774,103410.0,103400.0,0.29872459]
[1750447978825,0.82475774,103410.0,103400.0,0.29872459]
[1750447979236,0.34005,103410.0,103400.0,0.29872459]
[1750447979439,0.80541885,103410.0,103400.0,0.29872459]
[1750447979894,5e-05,103410.0,103400.0,0.37644354]
[1750447980666,0.48470652,103420.0,103410.0,0.2879145]
[1750447980865,0.48470605,103420.0,103410.0,0.4528145]
[1750447981157,0.49437498,103420.0,103410.0,0.4528145]
[1750447981362,0.51219385,103420.0,103410.0,0.4528145]
[1750447981542,0.49285665,103420.0,103410.0,0.52841116]
[1750447981746,0.51219423,103420.0,103410.0,0.52841116]
[1750447982162,0.72491893,103420.0,103410.0,0.22241468]
[1750447982386,0.72491893,103420.0,103410.0,0.23208436]
[1750447982535,0.72491893,103420.0,103410.0,0.39572436]
[1750447982739,0.52286344,103420.0,103410.0,0.40539395]
[1750447982939,0.52286344,103420.0,103410.0,0.45924436]
[1750447983141,0.52286344,103420.0,103410.0,0.46891395]
[1750447983341,0.72571893,103420.0,103410.0,0.20307504]
[1750447983549,0.75681893,103420.0,103410.0,0.37634509]
[1750447983749,0.75681893,103420.0,103410.0,0.38601505]
[1750447983977,0.78941893,103420.0,103410.0,0.38601505]
[1750447984186,0.78941893,103420.0,103410.0,0.37634509]
[1750447984383,0.77008135,103420.0,103410.0,0.37634509]
[1750447985000,0.73748135,103420.0,103410.0,0.37634509]
[1750447985202,0.72781214,103420.0,103410.0,0.20307504]
[1750447985403,0.72781214,103420.0,103410.0,0.36663504]
[1750447985601,0.69671214,103420.0,103410.0,0.38597496]
[1750447985832,0.19340489,103410.0,103400.0,0.14001895]
[1750447986031,1.12414259,103410.0,103400.0,0.36653476]
[1750447986232,0.00967117,103400.0,103390.0,0.26643413]
[1750447986447,0.67813404,103400.0,103390.0,0.22245798]
[1750447986682,0.66846361,103400.0,103390.0,0.38589798]
[1750447986879,0.66846361,103400.0,103390.0,0.22245798]
[1750447987047,1.07226361,103400.0,103390.0,0.36671441]
[1750447987249,1.07226361,103400.0,103390.0,0.1636]
[1750447987434,1.07226361,103400.0,103390.0,0.3580423]
[1750447987840,1.07226361,103400.0,103390.0,0.36771441]
[1750447988034,1.04066361,103400.0,103390.0,0.36771441]
[1750447988241,1.03099244,103400.0,103390.0,0.001]
[1750447988485,1.06259244,103400.0,103390.0,0.001]
[1750447988704,0.54311422,103390.0,103380.0,0.29061765]
[1750447988934,1.00848307,103390.0,103380.0,0.46385013]
[1750447989138,0.54311422,103390.0,103380.0,0.52967013]
[1750447989309,1.00848307,103390.0,103380.0,0.52967013]
[1750447989511,1.00848307,103390.0,103380.0,0.45417765]
[1750447989846,1.00848307,103390.0,103380.0,0.46385032]
[1750447990066,1.00848307,103390.0,103380.0,0.30129032]
[1750447990275,1.01815509,103390.0,103380.0,0.4745628]
[1750447990507,0.83438462,103390.0,103380.0,0.55075519]
[1750447990721,1.02782692,103390.0,103380.0,0.55207519]
[1750447990935,0.02901577,103390.0,103380.0,0.55207519]
[1750447991144,0.83438462,103390.0,103380.0,0.55207519]
[1750447991554,0.84405636,103390.0,103380.0,0.55207519]
[1750447992516,1.03749866,103390.0,103380.0,0.55207519]
[1750447993474,1.02782692,103390.0,103380.0,0.46691032]
[1750447993684,0.83438462,103390.0,103380.0,0.54865529]
[1750447993894,0.83438462,103390.0,103380.0,0.54987529]
[1750447994118,0.8247126,103390.0,103380.0,0.54987529]
[1750447995431,0.83438341,103390.0,103380.0,0.54987529]
[1750447995643,0.82471167,103390.0,103380.0,0.54987529]
[1750447995857,0.85372707,103390.0,103380.0,0.54833529]
[1750447996069,0.85372707,103390.0,103380.0,0.54955529]
[1750447996312,0.85372707,103390.0,103380.0,0.47183634]
[1750447996532,1.02782655,103390.0,103380.0,0.46216395]
[1750447996759,1.01815491,103390.0,103380.0,0.45249137]
[1750447997363,1.01815491,103390.0,103380.0,0.37919879]
[1750447997610,1.00848317,103390.0,103380.0,0.37919879]
[1750447998057,0.99881115,103390.0,103380.0,0.37919879]
[1750447998262,0.99881115,103390.0,103380.0,0.38887156]
[1750447998486,1.06291115,103390.0,103380.0,0.00319197]
[1750447998705,1.52834,103390.0,103380.0,0.00319197]
[1750447998962,1.62361893,103390.0,103380.0,0.00319197]
[1750447999188,4.25601708,103390.0,103380.0,0.00319197]
[1750447999438,4.88456593,103390.0,103380.0,0.00319197]
[1750447999641,4.88462593,103390.0,103380.0,0.00019197]
[1750448000058,4.88562593,103390.0,103380.0,0.00019197]
[1750448001722,4.91422618,103390.0,103380.0,0.00019197]
[1750448002802,4.95710618,103390.0,103380.0,0.00019197]
[1750448003844,4.95704618,103390.0,103380.0,0.00019197]
[1750448004052,4.46307708,103390.0,103380.0,0.00019197]
[1750448004268,4.92850593,103390.0,103380.0,0.00019197]
[1750448005872,5.02377578,103390.0,103380.0,0.00019197]
[1750448006893,4.92850593,103390.0,103380.0,0.00019197]
[1750448008803,4.95756593,103390.0,103380.0,0.00019197]
[1750448010795,5.0275272,103390.0,103380.0,0.00019197]
[1750448011038,4.97210678,103390.0,103380.0,0.00019197]
[1750448011244,5.00154979,103390.0,103380.0,0.00019197]
[1750448011451,5.09681964,103390.0,103380.0,0.00019197]
[1750448012315,5.00154979,103390.0,103380.0,0.00019197]
[1750448014458,5.48974979,103390.0,103380.0,0.00019197]
[1750448015542,5.51289926,103390.0,103380.0,0.00019197]
[1750448018786,5.48974979,103390.0,103380.0,0.00019197]
[1750448019311,4.53607482,103390.0,103380.0,0.00019197]
[1750448019514,4.96880367,103390.0,103380.0,0.06449197]
[1750448019778,4.94564009,103390.0,103380.0,0.06449197]
[1750448019977,4.94564009,103390.0,103380.0,0.00019197]
[1750448020361,5.41100894,103390.0,103380.0,0.00019197]
[1750448020987,5.50627879,103390.0,103380.0,0.00019197]
[1750448021185,5.52944513,103390.0,103380.0,0.00019197]
[1750448021564,5.56234513,103390.0,103380.0,0.00019197]
[1750448021979,4.53633758,103390.0,103380.0,0.00019197]
[1750448022146,5.46707528,103390.0,103380.0,0.00019197]
[1750448022626,5.43417528,103390.0,103380.0,0.00019197]
[1750448023190,0.0193473,103370.0,103360.0,0.1332304]
[1750448023390,4.11596288,103370.0,103360.0,0.12865806]
[1750448023597,4.14671215,103370.0,103360.0,0.12982806]
[1750448023991,3.99583046,103370.0,103360.0,0.12982806]
[1750448024216,4.01517776,103370.0,103360.0,0.12982806]
[1750448024422,4.01517776,103370.0,103360.0,0.16603276]
[1750448025077,4.01517776,103370.0,103360.0,0.00047195]
[1750448025078,4.11045669,103370.0,103360.0,0.00047195]
[1750448025527,4.27365669,103370.0,103360.0,0.00047195]
[1750448025738,4.27365669,103370.0,103360.0,0.00147195]
[1750448025939,4.27365669,103370.0,103360.0,0.00247195]
[1750448026152,4.27365669,103370.0,103360.0,0.00147195]
[1750448027002,4.27365669,103370.0,103360.0,0.00047195]
[1750448029045,4.33513456,103370.0,103360.0,0.00047195]
[1750448029252,4.27365669,103370.0,103360.0,0.00047195]
[1750448031100,4.27365669,103370.0,103360.0,0.06477195]
[1750448031319,4.27365669,103370.0,103360.0,0.06594195]
[1750448032758,4.27365669,103370.0,103360.0,0.06477195]
[1750448033772,4.30272469,103370.0,103360.0,0.06477195]
[1750448040476,3.97727434,103370.0,103360.0,0.06477195]
[1750448040709,4.44264319,103370.0,103360.0,0.06594195]
[1750448042614,4.44264319,103370.0,103360.0,0.06477195]
[1750448042840,4.5610802,103370.0,103360.0,0.00047195]
[1750448043052,4.24916346,103370.0,103360.0,0.00047195]
[1750448043284,4.44264319,103370.0,103360.0,0.00047195]
[1750448043501,4.10264319,103370.0,103360.0,0.00047195]
[1750448043935,4.44264319,103370.0,103360.0,0.00047195]
[1750448044349,4.44264319,103370.0,103360.0,0.06297195]
[1750448045893,3.97727434,103370.0,103360.0,0.06938615]
[1750448046106,4.44264319,103370.0,103360.0,0.06297195]
[1750448046317,4.44264319,103370.0,103360.0,0.00047195]
[1750448049206,4.44264319,103370.0,103360.0,0.06467195]
[1750448051328,4.46581874,103370.0,103360.0,0.06467195]
[1750448051579,4.46581874,103370.0,103360.0,0.03307195]
[1750448052405,4.56108859,103370.0,103360.0,0.03307195]
[1750448052653,4.56108859,103370.0,103360.0,0.00047195]
[1750448052870,4.48394383,103370.0,103360.0,0.00047195]
[1750448053978,4.46581874,103370.0,103360.0,0.06157195]
[1750448054623,4.48394562,103370.0,103360.0,0.06157195]
[1750448055241,4.46581874,103370.0,103360.0,0.06157195]
[1750448055462,4.46581874,103370.0,103360.0,0.03117195]
[1750448055641,4.48394587,103370.0,103360.0,0.00047195]
[1750448056296,5.01945832,103370.0,103360.0,0.00047195]
[1750448056497,3.31063523,103350.0,103340.0,0.14311895]
[1750448056793,4.49985186,103350.0,103340.0,0.14316641]
[1750448057007,4.56593077,103350.0,103340.0,0.14431641]
[1750448057217,4.59500277,103350.0,103340.0,0.14431641]
[1750448057441,4.57180386,103350.0,103340.0,0.14431641]
[1750448058089,4.57180386,103350.0,103340.0,0.06659746]
[1750448060044,4.57180386,103350.0,103340.0,0.0945581]
[1750448060678,4.57180386,103350.0,103340.0,0.06659746]
[1750448060879,4.57180386,103350.0,103340.0,0.36688156]
[1750448060880,0.50411595,103350.0,103340.0,0.36688156]
[1750448061158,0.029072,103350.0,103340.0,0.36688156]
[1750448061345,0.00505443,103360.0,103350.0,0.28689361]
[1750448061554,0.5238487,103370.0,103360.0,0.22252207]
[1750448061765,0.51417537,103370.0,103360.0,0.33369602]
[1750448061972,0.03913338,103370.0,103360.0,0.41141497]
[1750448062178,0.50450223,103370.0,103360.0,0.41141497]
[1750448062401,0.80536885,103370.0,103360.0,0.41141497]
[1750448062602,0.46536885,103370.0,103360.0,0.41141497]
[1750448062807,0.38840744,103380.0,103370.0,0.28570056]
[1750448063037,0.0387343,103380.0,103370.0,0.33469652]
[1750448063229,0.39807936,103380.0,103370.0,0.33469652]
[1750448063418,0.37869022,103380.0,103370.0,0.33469652]
[1750448063835,0.37869022,103380.0,103370.0,0.28685056]
[1750448064043,1.08660442,103380.0,103370.0,0.28685056]
[1750448064250,1.08660517,103380.0,103370.0,0.28685056]
[1750448064452,0.88347111,103380.0,103370.0,0.28685056]
[1750448064862,1.07693212,103380.0,103370.0,0.27717723]
[1750448065070,1.53262858,103380.0,103370.0,0.27717723]
[1750448066708,1.53262858,103380.0,103370.0,0.28685074]
[1750448067128,1.53262858,103380.0,103370.0,0.29652416]
[1750448067333,1.32949462,103380.0,103370.0,0.30629749]
[1750448067536,0.86412577,103380.0,103370.0,0.30629749]
[1750448068165,1.05758678,103380.0,103370.0,0.29662416]
[1750448068578,1.06725973,103380.0,103370.0,0.29662416]
[1750448068767,0.87379872,103380.0,103370.0,0.29662416]
[1750448069019,1.07693278,103380.0,103370.0,0.30629749]
[1750448069221,0.87379872,103380.0,103370.0,0.30629749]
[1750448069633,0.86412577,103380.0,103370.0,0.30629749]
[1750448069818,0.38908378,103380.0,103370.0,0.35627708]
[1750448070034,0.37941139,103380.0,103370.0,0.51943708]
[1750448070253,1.06950506,103390.0,103380.0,0.28652902]
[1750448070471,1.38044506,103390.0,103380.0,0.28652902]
[1750448070686,1.39978788,103390.0,103380.0,0.28652902]
[1750448070903,1.40945924,103390.0,103380.0,0.28652902]
[1750448071125,1.39978769,103390.0,103380.0,0.28652902]
[1750448071551,1.40993125,103390.0,103380.0,0.28652902]
[1750448071781,1.4002597,103390.0,103380.0,0.28652902]
[1750448072409,1.4196029,103390.0,103380.0,0.28652902]
[1750448072614,1.4196028,103390.0,103380.0,0.28652902]
[1750448073250,1.66207409,103390.0,103380.0,0.28652921]
[1750448073461,0.49571909,103390.0,103380.0,0.2962016]
[1750448073676,0.97075996,103390.0,103380.0,0.2962016]
[1750448073884,0.9514163,103390.0,103380.0,0.2962016]
[1750448074089,0.96108794,103390.0,103380.0,0.2962016]
[1750448074315,0.49571909,103390.0,103380.0,0.2962016]
[1750448074526,0.96108794,103390.0,103380.0,0.2962016]
[1750448074738,0.97075977,103390.0,103380.0,0.2962016]
[1750448074972,0.96108794,103390.0,103380.0,0.2962016]
[1750448075390,0.9514163,103390.0,103380.0,0.2962016]
[1750448075805,0.94218785,103390.0,103380.0,0.34089192]
[1750448076009,0.96153141,103390.0,103380.0,0.34089192]
[1750448076261,0.95185949,103390.0,103380.0,0.34089192]
[1750448076464,0.96153132,103390.0,103380.0,0.34089192]
[1750448076670,0.95185949,103390.0,103380.0,0.34089192]
[1750448077097,0.96153132,103390.0,103380.0,0.34089192]
[1750448077303,0.95185949,103390.0,103380.0,0.34089192]
[1750448077510,0.94218785,103390.0,103380.0,0.34089192]
[1750448077726,0.95185959,103390.0,103380.0,0.34089192]
[1750448078203,0.54388338,103390.0,103380.0,0.34089192]
[1750448078625,0.5535553,103390.0,103380.0,0.34089192]
[1750448079523,0.5535553,103390.0,103380.0,0.2963016]
[1750448079750,0.55355596,103390.0,103380.0,0.2963016]
[1750448080224,0.89355596,103390.0,103380.0,0.2963016]
[1750448081313,0.88388394,103390.0,103380.0,0.2963016]
[1750448081984,0.87421202,103390.0,103380.0,0.2963016]
[1750448082210,0.87421202,103390.0,103380.0,0.37210095]
[1750448082423,0.86454028,103390.0,103380.0,0.37210095]
[1750448082692,0.87421192,103390.0,103380.0,0.37210095]
[1750448083394,0.88388375,103390.0,103380.0,0.37210095]
[1750448083621,0.89355567,103390.0,103380.0,0.37210095]
[1750448083842,0.89355623,103390.0,103380.0,0.2963016]
[1750448084646,1.07732745,103390.0,103380.0,0.22612]
[1750448085486,1.0579837,103390.0,103380.0,0.22612]
[1750448085901,4.1557507,103390.0,103380.0,0.0001]
[1750448086117,4.62200955,103390.0,103380.0,0.0001]
[1750448086550,5.03887833,103390.0,103380.0,0.0001]
[1750448086764,4.94360848,103390.0,103380.0,0.0001]
[1750448087176,4.94866137,103390.0,103380.0,0.0001]
[1750448088677,4.97769172,103390.0,103380.0,0.0001]
[1750448088895,4.97969172,103390.0,103380.0,0.0001]
[1750448089722,4.91649172,103390.0,103380.0,0.0001]
[1750448090339,4.96658667,103390.0,103380.0,0.0001]
[1750448090548,4.94849172,103390.0,103380.0,0.0001]
[1750448090777,4.58675767,103390.0,103380.0,0.0001]
[1750448090981,4.55475767,103390.0,103380.0,0.0001]
[1750448091213,3.45199575,103390.0,103380.0,0.19356101]
[1750448091420,3.45199575,103390.0,103380.0,0.11998077]
[1750448091421,0.75748665,103390.0,103380.0,0.11998077]
[1750448091678,0.75748665,103390.0,103380.0,0.19769972]
[1750448092317,0.75748665,103390.0,103380.0,0.13941895]